fUST/lending_fUST_20250318
["ID","MTS","AMOUNT","RATE_DAILY","PERIOD"]
[356304262,1742239842108,-500.0,8.743e-05,2]
[356304263,1742239842117,-221.16717924,8.743e-05,2]
[356304264,1742239842127,-189.93282194,8.743e-05,2]
[356304265,1742239842136,-624.79332172,8.743e-05,2]
[356304266,1742239842146,-241.51129819,8.743e-05,2]
[356304267,1742239842155,-500.0,8.743e-05,2]
[356304268,1742239842164,-500.0,8.743e-05,2]
[356304269,1742239842173,-500.0,8.743e-05,2]
[356304270,1742239842182,-502.8339842,8.743e-05,2]
[356304271,1742239842192,-500.0,8.743e-05,2]
[356304272,1742239842201,-528.7791108,8.743e-05,2]
[356304273,1742239842211,-500.0,8.743e-05,2]
[356304274,1742239842220,-500.0,8.743e-05,2]
[356304275,1742239842229,-500.0,8.743e-05,2]
[356304276,1742239842238,-500.0,8.743e-05,2]
[356304277,1742239842248,-500.0,8.743e-05,2]
[356304278,1742239842257,-267.08696587,8.743e-05,2]
[356304279,1742239842270,-152.16700748,8.743e-05,2]
[356304280,1742239842280,-500.0,8.743e-05,2]
[356304281,1742239842289,-500.0,8.743e-05,2]
[356304282,1742239842299,-500.0,8.743e-05,2]
[356304283,1742239842309,-500.0,8.743e-05,2]
[356304284,1742239842319,-500.0,8.743e-05,2]
[356304285,1742239842328,-500.0,8.743e-05,2]
[356304286,1742239842338,-500.0,8.743e-05,2]
[356304287,1742239842349,-393.72527737,8.743e-05,2]
[356304288,1742239842359,-500.0,8.743e-05,2]
[356304289,1742239842368,-500.21606881,8.743e-05,2]
[356304290,1742239842378,-500.0,8.743e-05,2]
[356304291,1742239842387,-2500.0,8.746e-05,2]
[356304292,1742239842396,-2500.0,8.748e-05,2]
[356304293,1742239842407,-2500.0,8.755e-05,2]
[356304294,1742239842417,-2500.0,8.756e-05,2]
[356304295,1742239842427,-2500.0,8.756e-05,2]
[356304296,1742239842436,-2500.0,8.763e-05,2]
[356304297,1742239842447,-2500.0,8.765e-05,2]
[356304298,1742239842457,-2500.0,8.765e-05,2]
[356304299,1742239842467,-500.0,8.767e-05,2]
[356304300,1742239842476,-500.0,8.767e-05,2]
[356304301,1742239842486,-500.0,8.767e-05,2]
[356304302,1742239842495,-500.0,8.767e-05,2]
[356304303,1742239842504,-500.0,8.767e-05,2]
[356304304,1742239842514,-500.0,8.767e-05,2]
[356304305,1742239842524,-500.0,8.767e-05,2]
[356304306,1742239842534,-500.0,8.767e-05,2]
[356304307,1742239842544,-500.0,8.767e-05,2]
[356304308,1742239842553,-500.0,8.767e-05,2]
[356304309,1742239842564,-500.0,8.767e-05,2]
[356304310,1742239842574,-500.0,8.767e-05,2]
[356304311,1742239842583,-500.0,8.767e-05,2]
[356304312,1742239842594,-500.0,8.767e-05,2]
[356304313,1742239842602,-500.0,8.767e-05,2]
[356304314,1742239842612,-500.0,8.767e-05,2]
[356304315,1742239842622,-500.0,8.767e-05,2]
[356304316,1742239842631,-500.0,8.767e-05,2]
[356304317,1742239842641,-500.0,8.767e-05,2]
[356304318,1742239842651,-500.0,8.767e-05,2]
[356304319,1742239842660,-500.0,8.767e-05,2]
[356304320,1742239842670,-500.0,8.767e-05,2]
[356304321,1742239842681,-500.0,8.767e-05,2]
[356304322,1742239842690,-645.85,8.767e-05,2]
[356304323,1742239842700,-500.0,8.767e-05,2]
[356304324,1742239842709,-500.0,8.767e-05,2]
[356304325,1742239842718,-500.0,8.767e-05,2]
[356304326,1742239842727,-900.68,8.767e-05,2]
[356304327,1742239842736,-500.0,8.767e-05,2]
[356304328,1742239842746,-1020.3,8.767e-05,2]
[356304329,1742239842754,-500.0,8.767e-05,2]
[356304330,1742239842764,-500.0,8.767e-05,2]
[356304331,1742239842773,-231.53588113,8.767e-05,2]
[356304332,1742239842784,-500.0,8.767e-05,2]
[356304333,1742239842794,-1629.54,8.767e-05,2]
[356304334,1742239842803,-1110.45,8.767e-05,2]
[356304335,1742239842813,-500.0,8.767e-05,2]
[356304336,1742239842822,-500.0,8.767e-05,2]
[356304337,1742239842832,-500.0,8.767e-05,2]
[356304338,1742239842841,-403.94819184,8.767e-05,2]
[356304339,1742239842851,-500.0,8.767e-05,2]
[356304340,1742239842860,-775.61,8.767e-05,2]
[356304341,1742239842870,-500.0,8.767e-05,2]
[356304342,1742239842880,-500.0,8.767e-05,2]
[356304345,1742239842891,-500.0,8.767e-05,2]
[356304347,1742239842901,-500.0,8.767e-05,2]
[356304349,1742239842910,-500.0,8.767e-05,2]
[356304351,1742239842920,-500.0,8.767e-05,2]
[356304352,1742239842930,-500.0,8.767e-05,2]
[356304353,1742239842939,-500.0,8.767e-05,2]
[356304354,1742239842949,-500.0,8.767e-05,2]
[356304355,1742239842959,-500.0,8.767e-05,2]
[356304356,1742239842969,-888.56,8.767e-05,2]
[356304357,1742239842979,-1079.7,8.767e-05,2]
[356304358,1742239842989,-500.0,8.767e-05,2]
[356304360,1742239842999,-500.0,8.767e-05,2]
[356304362,1742239843010,-500.0,8.767e-05,2]
[356304364,1742239843019,-500.0,8.767e-05,2]
[356304366,1742239843029,-500.0,8.767e-05,2]
[356304368,1742239843038,-500.0,8.767e-05,2]
[356304370,1742239843048,-500.0,8.767e-05,2]
[356304371,1742239843057,-500.0,8.767e-05,2]
[356304372,1742239843067,-500.0,8.767e-05,2]
[356304373,1742239843076,-500.0,8.767e-05,2]
[356304374,1742239843086,-451.98756145,8.767e-05,2]
[356304375,1742239843095,-500.0,8.767e-05,2]
[356304377,1742239843238,-500.0,8.767e-05,2]
[356304378,1742239843247,-500.0,8.767e-05,2]
[356304379,1742239843258,-500.0,8.767e-05,2]
[356304380,1742239843269,-363.20118859,8.767e-05,2]
[356304381,1742239843279,-500.0,8.767e-05,2]
[356304382,1742239843288,-500.0,8.767e-05,2]
[356304383,1742239843298,-500.0,8.767e-05,2]
[356304384,1742239843309,-622.39,8.767e-05,2]
[356304385,1742239843319,-500.0,8.767e-05,2]
[356304386,1742239843328,-500.0,8.767e-05,2]
[356304387,1742239843339,-558.37,8.767e-05,2]
[356304388,1742239843350,-500.0,8.767e-05,2]
[356304389,1742239843359,-489.37611628,8.767e-05,2]
[356304390,1742239843368,-500.0,8.767e-05,2]
[356304391,1742239843378,-6858.98,8.767e-05,2]
[356304392,1742239843387,-648.84107203,8.767e-05,2]
[356304393,1742239843396,-1706.85,8.767e-05,2]
[356304394,1742239843406,-500.0,8.767e-05,2]
[356304395,1742239843415,-500.0,8.767e-05,2]
[356304396,1742239843426,-7315.78,8.767e-05,2]
[356304397,1742239843435,-500.0,8.767e-05,2]
[356304398,1742239843444,-4405.64,8.767e-05,2]
[356304399,1742239843454,-4594.27,8.767e-05,2]
[356304400,1742239843463,-500.0,8.767e-05,2]
[356304401,1742239843473,-634.79091545,8.767e-05,2]
[356304402,1742239843482,-500.0,8.767e-05,2]
[356304403,1742239843491,-2145.42,8.767e-05,2]
[356304404,1742239843501,-500.0,8.767e-05,2]
[356304405,1742239843512,-500.0,8.767e-05,2]
[356304406,1742239843521,-500.0,8.767e-05,2]
[356304407,1742239843530,-500.0,8.767e-05,2]
[356304408,1742239843540,-500.0,8.767e-05,2]
[356304409,1742239843550,-500.0,8.767e-05,2]
[356304410,1742239843560,-500.0,8.767e-05,2]
[356304411,1742239843569,-500.0,8.767e-05,2]
[356304412,1742239843579,-500.0,8.767e-05,2]
[356304413,1742239843588,-500.0,8.767e-05,2]
[356304414,1742239843599,-500.0,8.767e-05,2]
[356304415,1742239843608,-500.0,8.767e-05,2]
[356304416,1742239843618,-500.0,8.767e-05,2]
[356304417,1742239843628,-1082.99,8.767e-05,2]
[356304418,1742239843638,-500.0,8.767e-05,2]
[356304419,1742239843648,-831.79,8.767e-05,2]
[356304420,1742239843657,-500.0,8.767e-05,2]
[356304421,1742239843666,-500.0,8.767e-05,2]
[356304422,1742239843675,-9217.81,8.767e-05,2]
[356304423,1742239843685,-8019.11,8.767e-05,2]
[356304425,1742239843694,-969.11,8.767e-05,2]
[356304427,1742239843703,-5403.94,8.767e-05,2]
[356304429,1742239843713,-500.0,8.767e-05,2]
[356304431,1742239843722,-500.0,8.767e-05,2]
[356304433,1742239843732,-500.0,8.767e-05,2]
[356304435,1742239843741,-500.0,8.767e-05,2]
[356304437,1742239843751,-4099.88,8.767e-05,2]
[356304439,1742239843760,-2449.4,8.767e-05,2]
[356304440,1742239843769,-2032.33,8.767e-05,2]
[356304441,1742239843780,-500.0,8.767e-05,2]
[356304442,1742239843789,-500.0,8.767e-05,2]
[356304443,1742239843799,-500.0,8.767e-05,2]
[356304444,1742239843808,-1148.01,8.767e-05,2]
[356304445,1742239843817,-500.0,8.767e-05,2]
[356304446,1742239843827,-4001.35,8.767e-05,2]
[356304447,1742239843836,-500.0,8.767e-05,2]
[356304448,1742239843846,-14772.08,8.767e-05,2]
[356304449,1742239843855,-500.0,8.767e-05,2]
[356304450,1742239843865,-621.50740968,8.767e-05,2]
[356304451,1742239843875,-1414.02,8.767e-05,2]
[356304452,1742239843884,-460.98728663,8.767e-05,2]
[356304453,1742239843894,-500.0,8.767e-05,2]
[356304454,1742239843904,-500.0,8.767e-05,2]
[356304455,1742239843913,-500.0,8.767e-05,2]
[356304456,1742239843922,-500.0,8.767e-05,2]
[356304457,1742239843932,-500.0,8.767e-05,2]
[356304458,1742239843942,-3316.06,8.767e-05,2]
[356304459,1742239843952,-500.0,8.767e-05,2]
[356304460,1742239843961,-500.0,8.767e-05,2]
[356304461,1742239843971,-3117.65,8.767e-05,2]
[356304462,1742239843980,-500.0,8.767e-05,2]
[356304463,1742239843990,-500.0,8.767e-05,2]
[356304464,1742239843999,-5228.01,8.767e-05,2]
[356304465,1742239844009,-841.56,8.767e-05,2]
[356304466,1742239844019,-500.0,8.767e-05,2]
[356304467,1742239844028,-1497.24,8.767e-05,2]
[356304468,1742239844037,-500.0,8.767e-05,2]
[356304469,1742239844047,-1198.88,8.767e-05,2]
[356304470,1742239844056,-2701.7,8.767e-05,2]
[356304471,1742239844066,-500.0,8.767e-05,2]
[356304472,1742239844075,-13280.13,8.767e-05,2]
[356304473,1742239844084,-627.97,8.767e-05,2]
[356304474,1742239844094,-500.0,8.767e-05,2]
[356304475,1742239844103,-116653.47,8.767e-05,2]
[356304476,1742239844113,-15311.62,8.767e-05,2]
[356304477,1742239844122,-500.0,8.767e-05,2]
[356304478,1742239844131,-500.0,8.767e-05,2]
[356304479,1742239844141,-500.0,8.767e-05,2]
[356304480,1742239844150,-4952.79,8.767e-05,2]
[356304481,1742239844160,-1633.37,8.767e-05,2]
[356304482,1742239844169,-513.63,8.767e-05,2]
[356304483,1742239844179,-1720.35,8.767e-05,2]
[356304484,1742239844188,-500.0,8.767e-05,2]
[356304485,1742239844198,-759.25,8.767e-05,2]
[356304486,1742239844207,-500.0,8.767e-05,2]
[356304487,1742239844216,-762.23,8.767e-05,2]
[356304488,1742239844226,-500.0,8.767e-05,2]
[356304489,1742239844235,-1842.41,8.767e-05,2]
[356304490,1742239844244,-8883.95,8.767e-05,2]
[356304491,1742239844253,-500.0,8.767e-05,2]
[356304492,1742239844266,-338.86845947,8.767e-05,2]
[356304493,1742239844275,-2500.0,8.772e-05,2]
[356304494,1742239844285,-2500.0,8.774e-05,2]
[356304495,1742239844294,-2500.0,8.774e-05,2]
[356304496,1742239844304,-2500.0,8.781e-05,2]
[356304497,1742239844313,-2500.0,8.783e-05,2]
[356304498,1742239844323,-2500.0,8.783e-05,2]
[356304499,1742239844332,-2500.0,8.79e-05,2]
[356304500,1742239844343,-2500.0,8.792e-05,2]
[356304501,1742239844353,-2500.0,8.792e-05,2]
[356304502,1742239844363,-500.0,8.794e-05,2]
[356304503,1742239844371,-2500.0,8.799e-05,2]
[356304504,1742239844381,-2500.0,8.8e-05,2]
[356304505,1742239844390,-2500.0,8.8e-05,2]
[356304506,1742239844399,-2500.0,8.807e-05,2]
[356304507,1742239844409,-2500.0,8.809e-05,2]
[356304508,1742239844419,-2500.0,8.809e-05,2]
[356304509,1742239844429,-2500.0,8.816e-05,2]
[356304510,1742239844439,-2500.0,8.818e-05,2]
[356304511,1742239844448,-2500.0,8.818e-05,2]
[356304512,1742239844458,-7898.51746537,8.82e-05,4]
[356304513,1742239844468,-500.0,8.822e-05,2]
[356304514,1742239844477,-2500.0,8.825e-05,2]
[356304515,1742239844487,-253.0,8.825e-05,2]
[356304516,1742239844497,-2500.0,8.834e-05,2]
[356304517,1742239844506,-2500.0,8.843e-05,2]
[356304518,1742239844516,-500.0,8.849e-05,2]
[356304519,1742239844526,-2500.0,8.851e-05,2]
[356304520,1742239844535,-2500.0,8.86e-05,2]
[356304521,1742239844544,-2500.0,8.869e-05,2]
[356304522,1742239844554,-500.0,8.877e-05,2]
[356304523,1742239844563,-2500.0,8.878e-05,2]
[356304524,1742239844572,-2500.0,8.887e-05,2]
[356304525,1742239844581,-2500.0,8.895e-05,2]
[356304526,1742239844591,-20842.02378102,8.9e-05,2]
[356304527,1742239844601,-542.86366,8.904e-05,2]
[356304528,1742239844610,-2500.0,8.904e-05,2]
[356304529,1742239844619,-2500.0,8.913e-05,2]
[356304530,1742239844629,-2500.0,8.922e-05,2]
[356304531,1742239844639,-2500.0,8.931e-05,2]
[356304532,1742239844648,-824.8950106,8.933e-05,2]
[356304533,1742239844657,-2500.0,8.939e-05,2]
[356304534,1742239844667,-2500.0,8.948e-05,2]
[356304535,1742239844676,-19704.78141613,8.951e-05,2]
[356304536,1742239844686,-2500.0,8.957e-05,2]
[356304537,1742239844695,-500.0,9e-05,2]
[356304538,1742239844705,-600.0,9e-05,2]
[356304539,1742239844715,-609.81447677,9e-05,2]
[356304540,1742239844724,-420.0,9.04e-05,2]
[356304541,1742239844733,-500.0,9.041e-05,2]
[356304542,1742239844743,-500.0,9.041e-05,2]
[356304543,1742239844752,-500.0,9.041e-05,2]
[356304544,1742239844762,-638.52181314,9.041e-05,2]
[356304545,1742239844771,-570.20489181,9.041e-05,2]
[356304546,1742239844781,-500.0,9.041e-05,2]
[356304547,1742239844791,-500.0,9.041e-05,2]
[356304548,1742239844800,-500.0,9.041e-05,2]
[356304549,1742239844809,-500.0,9.041e-05,2]
[356304550,1742239844819,-500.0,9.041e-05,2]
[356304551,1742239844828,-500.0,9.041e-05,2]
[356304552,1742239844837,-500.0,9.041e-05,2]
[356304553,1742239844847,-500.0,9.041e-05,2]
[356304554,1742239844856,-500.0,9.041e-05,2]
[356304555,1742239844865,-500.0,9.041e-05,2]
[356304556,1742239844874,-500.0,9.041e-05,2]
[356304557,1742239844883,-500.0,9.041e-05,2]
[356304558,1742239844893,-500.0,9.041e-05,2]
[356304559,1742239844902,-500.0,9.041e-05,2]
[356304560,1742239844911,-500.0,9.041e-05,2]
[356304561,1742239844920,-500.0,9.041e-05,2]
[356304562,1742239844930,-645.85,9.041e-05,2]
[356304563,1742239844939,-500.0,9.041e-05,2]
[356304564,1742239844949,-500.0,9.041e-05,2]
[356304565,1742239844958,-500.0,9.041e-05,2]
[356304566,1742239844967,-900.68,9.041e-05,2]
[356304567,1742239844977,-500.0,9.041e-05,2]
[356304568,1742239844987,-1020.3,9.041e-05,2]
[356304569,1742239844996,-500.0,9.041e-05,2]
[356304570,1742239845006,-500.0,9.041e-05,2]
[356304571,1742239845015,-500.0,9.041e-05,2]
[356304572,1742239845025,-1629.54,9.041e-05,2]
[356304573,1742239845035,-1110.45,9.041e-05,2]
[356304574,1742239845044,-500.0,9.041e-05,2]
[356304575,1742239845053,-500.0,9.041e-05,2]
[356304576,1742239845063,-500.0,9.041e-05,2]
[356304577,1742239845073,-500.0,9.041e-05,2]
[356304578,1742239845082,-775.61,9.041e-05,2]
[356304579,1742239845092,-500.0,9.041e-05,2]
[356304580,1742239845101,-500.0,9.041e-05,2]
[356304581,1742239845111,-639.34906584,9.041e-05,2]
[356304582,1742239845121,-500.0,9.041e-05,2]
[356304583,1742239845130,-500.0,9.041e-05,2]
[356304584,1742239845141,-500.0,9.041e-05,2]
[356304585,1742239845150,-500.0,9.041e-05,2]
[356304586,1742239845159,-500.0,9.041e-05,2]
[356304587,1742239845168,-500.0,9.041e-05,2]
[356304588,1742239845178,-888.56,9.041e-05,2]
[356304589,1742239845187,-1079.7,9.041e-05,2]
[356304590,1742239845196,-500.0,9.041e-05,2]
[356304591,1742239845205,-498.25800788,9.041e-05,2]
[356304592,1742239845215,-500.0,9.041e-05,2]
[356304593,1742239845224,-500.0,9.041e-05,2]
[356304594,1742239845233,-500.0,9.041e-05,2]
[356304595,1742239845243,-500.0,9.041e-05,2]
[356304596,1742239845252,-500.0,9.041e-05,2]
[356304597,1742239845263,-500.0,9.041e-05,2]
[356304598,1742239845273,-500.0,9.041e-05,2]
[356304599,1742239845282,-500.0,9.041e-05,2]
[356304600,1742239845292,-500.0,9.041e-05,2]
[356304601,1742239845302,-500.0,9.041e-05,2]
[356304602,1742239845311,-500.0,9.041e-05,2]
[356304603,1742239845320,-500.0,9.041e-05,2]
[356304604,1742239845329,-500.0,9.041e-05,2]
[356304605,1742239845341,-622.39,9.041e-05,2]
[356304606,1742239845351,-500.0,9.041e-05,2]
[356304607,1742239845360,-500.0,9.041e-05,2]
[356304608,1742239845370,-500.0,9.041e-05,2]
[356304609,1742239845379,-500.0,9.041e-05,2]
[356304610,1742239845389,-6858.98,9.041e-05,2]
[356304611,1742239845398,-1706.85,9.041e-05,2]
[356304612,1742239845407,-500.0,9.041e-05,2]
[356304613,1742239845417,-7315.78,9.041e-05,2]
[356304614,1742239845427,-500.0,9.041e-05,2]
[356304615,1742239845436,-4405.64,9.041e-05,2]
[356304616,1742239845445,-4594.27,9.041e-05,2]
[356304617,1742239845455,-500.0,9.041e-05,2]
[356304618,1742239845465,-500.0,9.041e-05,2]
[356304619,1742239845475,-2145.42,9.041e-05,2]
[356304620,1742239845485,-500.0,9.041e-05,2]
[356304621,1742239845495,-500.0,9.041e-05,2]
[356304622,1742239845504,-500.0,9.041e-05,2]
[356304623,1742239845513,-500.0,9.041e-05,2]
[356304624,1742239845522,-500.0,9.041e-05,2]
[356304625,1742239845532,-500.0,9.041e-05,2]
[356304626,1742239845541,-500.0,9.041e-05,2]
[356304627,1742239845550,-500.0,9.041e-05,2]
[356304628,1742239845559,-500.0,9.041e-05,2]
[356304629,1742239845568,-500.0,9.041e-05,2]
[356304630,1742239845577,-1082.99,9.041e-05,2]
[356304631,1742239845587,-500.0,9.041e-05,2]
[356304632,1742239845596,-831.79,9.041e-05,2]
[356304633,1742239845605,-500.0,9.041e-05,2]
[356304634,1742239845614,-500.0,9.041e-05,2]
[356304635,1742239845623,-9217.81,9.041e-05,2]
[356304636,1742239845633,-8019.11,9.041e-05,2]
[356304637,1742239845643,-969.11,9.041e-05,2]
[356304638,1742239845653,-5403.94,9.041e-05,2]
[356304639,1742239845664,-500.0,9.041e-05,2]
[356304640,1742239845673,-500.0,9.041e-05,2]
[356304641,1742239845683,-500.0,9.041e-05,2]
[356304642,1742239845692,-500.0,9.041e-05,2]
[356304643,1742239845702,-4099.88,9.041e-05,2]
[356304644,1742239845711,-2449.4,9.041e-05,2]
[356304645,1742239845720,-2032.33,9.041e-05,2]
[356304646,1742239845730,-500.0,9.041e-05,2]
[356304647,1742239845860,-337.98352483,9.041e-05,2]
[356304648,1742239845872,-500.0,9.041e-05,2]
[356304649,1742239845881,-1148.01,9.041e-05,2]
[356304650,1742239845891,-500.0,9.041e-05,2]
[356304651,1742239845902,-4001.35,9.041e-05,2]
[356304652,1742239845911,-500.0,9.041e-05,2]
[356304653,1742239845920,-14772.08,9.041e-05,2]
[356304654,1742239845929,-500.0,9.041e-05,2]
[356304655,1742239845939,-1414.02,9.041e-05,2]
[356304657,1742239845948,-500.0,9.041e-05,2]
[356304659,1742239845958,-500.0,9.041e-05,2]
[356304661,1742239845967,-500.0,9.041e-05,2]
[356304662,1742239845976,-500.0,9.041e-05,2]
[356304663,1742239845986,-500.0,9.041e-05,2]
[356304664,1742239845995,-3316.06,9.041e-05,2]
[356304665,1742239846007,-500.0,9.041e-05,2]
[356304666,1742239846016,-500.0,9.041e-05,2]
[356304667,1742239846026,-3117.65,9.041e-05,2]
[356304668,1742239846035,-272.6113042,9.041e-05,2]
[356304669,1742239846045,-500.0,9.041e-05,2]
[356304670,1742239846054,-5228.01,9.041e-05,2]
[356304671,1742239846063,-841.56,9.041e-05,2]
[356304672,1742239846073,-500.0,9.041e-05,2]
[356304673,1742239846082,-1497.24,9.041e-05,2]
[356304674,1742239846091,-500.0,9.041e-05,2]
[356304675,1742239846101,-1198.88,9.041e-05,2]
[356304676,1742239846111,-2701.7,9.041e-05,2]
[356304677,1742239846120,-500.0,9.041e-05,2]
[356304678,1742239846130,-13280.13,9.041e-05,2]
[356304679,1742239846139,-627.97,9.041e-05,2]
[356304680,1742239846149,-500.0,9.041e-05,2]
[356304681,1742239846158,-116653.47,9.041e-05,2]
[356304682,1742239846168,-15311.62,9.041e-05,2]
[356304683,1742239846178,-449.37058588,9.041e-05,2]
[356304684,1742239846188,-500.0,9.041e-05,2]
[356304685,1742239846198,-500.0,9.041e-05,2]
[356304686,1742239846207,-4952.79,9.041e-05,2]
[356304687,1742239846217,-1633.37,9.041e-05,2]
[356304688,1742239846227,-513.63,9.041e-05,2]
[356304689,1742239846239,-1720.35,9.041e-05,2]
[356304690,1742239846249,-500.0,9.041e-05,2]
[356304691,1742239846260,-759.25,9.041e-05,2]
[356304692,1742239846271,-500.0,9.041e-05,2]
[356304693,1742239846280,-762.23,9.041e-05,2]
[356304694,1742239846289,-500.0,9.041e-05,2]
[356304695,1742239846299,-1842.41,9.041e-05,2]
[356304696,1742239846309,-8883.95,9.041e-05,2]
[356304697,1742239846318,-500.0,9.041e-05,2]
[356304698,1742239846328,-326.0,9.085e-05,2]
[356304699,1742239846338,-824.8950106,9.21e-05,2]
[356304700,1742239846348,-500.0,9.315e-05,2]
[356304701,1742239846358,-500.0,9.315e-05,2]
[356304702,1742239846367,-500.0,9.315e-05,2]
[356304703,1742239846376,-500.0,9.315e-05,2]
[356304704,1742239846385,-339.72299025,9.315e-05,2]
[356304705,1742239846395,-500.0,9.315e-05,2]
[356304706,1742239846404,-517.60385747,9.315e-05,2]
[356304707,1742239846413,-500.0,9.315e-05,2]
[356304708,1742239846422,-500.0,9.315e-05,2]
[356304709,1742239846431,-500.0,9.315e-05,2]
[356304710,1742239846441,-500.0,9.315e-05,2]
[356304711,1742239846450,-500.0,9.315e-05,2]
[356304712,1742239846459,-500.0,9.315e-05,2]
[356304713,1742239846468,-500.0,9.315e-05,2]
[356304714,1742239846477,-500.0,9.315e-05,2]
[356304715,1742239846487,-500.0,9.315e-05,2]
[356304717,1742239846496,-500.0,9.315e-05,2]
[356304718,1742239846505,-501.7,9.315e-05,2]
[356304719,1742239846515,-645.85,9.315e-05,2]
[356304720,1742239846524,-500.0,9.315e-05,2]
[356304721,1742239846533,-500.0,9.315e-05,2]
[356304722,1742239846542,-500.0,9.315e-05,2]
[356304723,1742239846552,-900.68,9.315e-05,2]
[356304724,1742239846561,-500.0,9.315e-05,2]
[356304725,1742239846570,-1020.3,9.315e-05,2]
[356304726,1742239846580,-500.0,9.315e-05,2]
[356304727,1742239846589,-500.0,9.315e-05,2]
[356304728,1742239846598,-500.0,9.315e-05,2]
[356304730,1742239846607,-1629.54,9.315e-05,2]
[356304731,1742239846617,-1110.45,9.315e-05,2]
[356304732,1742239846627,-500.0,9.315e-05,2]
[356304733,1742239846637,-500.0,9.315e-05,2]
[356304734,1742239846646,-500.0,9.315e-05,2]
[356304735,1742239846656,-500.0,9.315e-05,2]
[356304736,1742239846665,-775.61,9.315e-05,2]
[356304737,1742239846675,-500.0,9.315e-05,2]
[356304738,1742239846684,-500.0,9.315e-05,2]
[356304739,1742239846693,-500.0,9.315e-05,2]
[356304740,1742239846702,-500.0,9.315e-05,2]
[356304741,1742239846711,-500.0,9.315e-05,2]
[356304742,1742239846722,-500.0,9.315e-05,2]
[356304743,1742239846731,-500.0,9.315e-05,2]
[356304744,1742239846740,-500.0,9.315e-05,2]
[356304745,1742239846749,-888.56,9.315e-05,2]
[356304746,1742239846759,-1079.7,9.315e-05,2]
[356304747,1742239846768,-500.0,9.315e-05,2]
[356304748,1742239846777,-500.0,9.315e-05,2]
[356304749,1742239846787,-500.0,9.315e-05,2]
[356304750,1742239846796,-500.0,9.315e-05,2]
[356304751,1742239846805,-500.0,9.315e-05,2]
[356304753,1742239846815,-500.0,9.315e-05,2]
[356304754,1742239846824,-500.0,9.315e-05,2]
[356304755,1742239846834,-252.70594359,9.315e-05,2]
[356304756,1742239846843,-500.0,9.315e-05,2]
[356304757,1742239846854,-500.0,9.315e-05,2]
[356304758,1742239846863,-500.0,9.315e-05,2]
[356304759,1742239846873,-500.0,9.315e-05,2]
[356304760,1742239846883,-500.0,9.315e-05,2]
[356304761,1742239846891,-500.0,9.315e-05,2]
[356304762,1742239846901,-622.39,9.315e-05,2]
[356304763,1742239846911,-500.0,9.315e-05,2]
[356304764,1742239846921,-500.0,9.315e-05,2]
[356304765,1742239846931,-500.0,9.315e-05,2]
[356304766,1742239846941,-500.0,9.315e-05,2]
[356304767,1742239846951,-6858.98,9.315e-05,2]
[356304768,1742239846960,-1706.85,9.315e-05,2]
[356304769,1742239846969,-500.0,9.315e-05,2]
[356304770,1742239846979,-7315.78,9.315e-05,2]
[356304771,1742239846988,-500.0,9.315e-05,2]
[356304772,1742239847005,-4405.64,9.315e-05,2]
[356304773,1742239847021,-4594.27,9.315e-05,2]
[356304774,1742239847035,-500.0,9.315e-05,2]
[356304775,1742239847047,-500.0,9.315e-05,2]
[356304776,1742239847062,-701.57390639,9.315e-05,2]
[356304777,1742239847839,-5574.72647982,8.119e-05,2]
[356304778,1742239847851,-500.0,8.219e-05,2]
[356304779,1742239847860,-500.0,8.219e-05,2]
[356304780,1742239847870,-500.0,8.219e-05,2]
[356304781,1742239847881,-500.0,8.493e-05,2]
[356304782,1742239847891,-500.0,8.493e-05,2]
[356304783,1742239847901,-500.0,8.743e-05,2]
[356304784,1742239847911,-500.0,8.767e-05,2]
[356304785,1742239847921,-433.80900162,8.767e-05,2]
[356304786,1742239847931,-500.0,9.041e-05,2]
[356304787,1742239847941,-1443.84609361,9.315e-05,2]